Cogmind - Beta 17 @@@ ROGUE MODE // 2026.07.18 @ 05:55:03 Player: Artackni Result: Self-destructed Performance ------------- Evolutions (8) 4000 Regions Visited (12) 2400 Robots Destroyed (10) 50 Value Destroyed (276) 276 Prototype IDs (2) 40 Alien Tech Used (0) 0 Bonus (1825) 1825 TOTAL SCORE: 8591 Bonus ------- Pacifist 1325 Entered DSFs 500 Cogmind --------- Core Integrity 202/1450 Matter 267/300 Energy 99/100 System Corruption 4% Temperature Cool (0) Movement Core (50) Location -2/Research Parts ------- > --- POWER (3) -------- (None) > --- PROPULSION (11) -- (None) > --- UTILITY (7) ------ Experimental System Shield > --- WEAPON (2) ------- (None) > --- INVENTORY (5) ---- Micro Nuclear Core Improved Cooling System Advanced Weight Redist. System Fusion Bomb Launcher Powered Hammer Peak State ------------ > --- POWER ------------ Light Nuclear Core > --- PROPULSION ------- Xenon Bombardment Thruster Xenon Bombardment Thruster Xenon Bombardment Thruster Xenon Bombardment Thruster Electron Diverter > --- UTILITY ---------- Machine Analyzer Advanced Signal Interpreter Hacking Suite > --- WEAPON ----------- Scythe > --- INVENTORY -------- Improved Cooling System Advanced Weight Redist. System Fusion Bomb Launcher [Rating: 43] Favorites ----------- Power Light Nuclear Core Engine Light Ion Engine Power Core Light Nuclear Core Propulsion Xenon Bombardment Thruster Flight Unit Xenon Bombardment Thruster Utility Advanced Signal Interpreter Device Structural Scanner Processor Advanced Signal Interpreter Hackware Hacking Suite Weapon Scythe Launcher Fusion Bomb Launcher Slashing Weapon Scythe Build | -11 -10 -9 -8 -7 -7 -6 -6 -6 -5 -4 -3 -2 ------- Run | Yrd Mat Mat Mat Fac DSF Fac Low Low Fac Fac Res Res Slots Evolved 16 | . . 2 2 2 . 2 . . 2 2 2 2 Power 2 | . . . . 1 . . . . . . . 1 Propulsion 9 | . . 2 1 . . 1 . . 2 1 2 . Utility 5 | . . . 1 1 . 1 . . . 1 . 1 Weapon . | . . . . . . . . . . . . . Parts Attached 28 | . . . . . . 4 1 . 2 9 11 1 Power 4 | . . . . . . . . . . 2 2 . Engine 2 | . . . . . . . . . . 2 . . Core 2 | . . . . . . . . . . . 2 . Reactor . | . . . . . . . . . . . . . Propulsion 14 | . . . . . . 1 . . 1 4 8 . Treads . | . . . . . . . . . . . . . Leg . | . . . . . . . . . . . . . Wheel . | . . . . . . . . . . . . . Hover . | . . . . . . . . . . . . . Flight 14 | . . . . . . 1 . . 1 4 8 . Utility 7 | . . . . . . 2 1 . 1 2 . 1 Device 3 | . . . . . . 2 1 . . . . . Storage . | . . . . . . . . . . . . . Processor 2 | . . . . . . . . . 1 1 . . Hackware 2 | . . . . . . . . . . 1 . 1 Protection . | . . . . . . . . . . . . . Artifact . | . . . . . . . . . . . . . Weapon 3 | . . . . . . 1 . . . 1 1 . Energy Gun . | . . . . . . . . . . . . . Energy Cannon . | . . . . . . . . . . . . . Ballistic Gun . | . . . . . . . . . . . . . Ballistic Cannon . | . . . . . . . . . . . . . Launcher 1 | . . . . . . . . . . . 1 . Special Weapon . | . . . . . . . . . . . . . Impact Weapon . | . . . . . . . . . . . . . Slashing Weapon 2 | . . . . . . 1 . . . 1 . . Piercing Weapon . | . . . . . . . . . . . . . Special Melee Weapon . | . . . . . . . . . . . . . Unidentified Prototypes 2 | . . . . . . . . . . . 1 1 Parts Lost 22 | . . . . . . . 4 . 1 6 9 2 Power 2 | . . . . . . . . . . 1 1 . Propulsion 13 | . . . . . . . 1 . 1 4 5 2 Utility 5 | . . . . . . . 3 . . . 2 . Weapon 2 | . . . . . . . . . . 1 1 . Highest Loss Streak 9 | . . . . . . . 2 . 1 5 9 2 To Critical Strikes . | . . . . . . . . . . . . . Average Backups 3 | . . . 1 2 2 5 5 5 5 4 4 4 Power . | . . . . . . . 1 1 1 1 . . Propulsion . | . . . . . . . . . . . . . Utility 1 | . . . . 1 1 2 2 2 2 2 2 2 Weapon 1 | . . . 1 1 1 2 2 2 2 1 1 2 Tool/Special . | . . . . . . . . . . . . . Unused Backups 5 | . . . . . . . 1 . 1 . . 3 Power . | . . . . . . . . . . . . . Propulsion . | . . . . . . . . . . . . . Utility 3 | . . . . . . . . . 1 . . 2 Weapon 2 | . . . . . . . 1 . . . . 1 Tool/Special . | . . . . . . . . . . . . . Average Slot Usage (%) 13 | . . . . . . 17 11 . 3 19 30 11 Flight 4 | . . . . . . 3 . . 1 4 12 4 Device 1 | . . . . . . 8 10 . . . . . Processor 2 | . . . . . . . . . 1 7 7 1 Hackware 1 | . . . . . . . . . . 3 3 4 Slashing Weapon 1 | . . . . . . 5 . . . 3 2 . Peak Build Rating 43 | . . . . . 1 11 11 1 12 33 43 37 Average Rating 12 | . . . . . . 8 2 1 4 16 29 17 On Entrance 4 | . . . . . . 1 11 1 1 6 12 30 Avg Prop Armor Cover (%) 4 | . . . . . . . . . . . 4 4 Naked Turns 292 | . 28 63 43 8 38 11 5 47 49 . . . Heaviest Build 15 | . . . . . . 4 4 . . 15 7 6 Greatest Support 24 | 3 3 3 3 3 3 6 6 3 7 19 24 8 Greatest Overweight (x) . | . . . . . . . . . . . . . Average Overweight (x) . | . . . . . . . . . . . . . Largest Inventory Capacity 5 | 5 5 5 5 5 5 5 5 5 5 5 5 5 Average Capacity 5 | 5 5 5 5 5 5 5 5 5 5 5 5 5 Most Carried 5 | . . 1 2 2 5 5 5 5 5 5 5 5 Average Carried 4 | . . . 1 2 3 4 5 5 5 4 3 4 Final Capacity 5 | 5 5 5 5 5 5 5 5 5 5 5 5 5 Final Carried 5 | . . 1 2 2 5 5 5 5 5 5 5 5 Class Distribution -------------------- 87% | Mutant 8% | Scavenger-Sprinter 4% | Sprinter Dominant Class ---------------- Mutant | -10/Materials Mutant | -9/Materials Mutant | -8/Materials Mutant | -7/Factory Mutant | -7/DSF Mutant | -6/Factory Mutant | -6/Lower Caves Mutant | -6/Lower Caves Mutant | -5/Factory Mutant | -4/Factory Scavenger-Sprinter | -3/Research Mutant | -2/Research Resources | -11 -10 -9 -8 -7 -7 -6 -6 -6 -5 -4 -3 -2 ----------- Run | Yrd Mat Mat Mat Fac DSF Fac Low Low Fac Fac Res Res Matter Collected 398 | 200 . . . . . 10 . . . 106 65 17 Remotely . | . . . . . . . . . . . . . Salvage Created 176 | . . . . . . 26 . . . 50 83 17 Parts 22 | . . . . . . 4 . . . 9 6 3 Haulers Intercepted . | . . . . . . . . . . . . . Recyclers Shooed . | . . . . . . . . . . . . . Parts Field Recycled . | . . . . . . . . . . . . . Retrieved Matter . | . . . . . . . . . . . . . Parts Self-Destructed . | . . . . . . . . . . . . . Prevented . | . . . . . . . . . . . . . Parts Restored . | . . . . . . . . . . . . . Kills | -11 -10 -9 -8 -7 -7 -6 -6 -6 -5 -4 -3 -2 ------- Run | Yrd Mat Mat Mat Fac DSF Fac Low Low Fac Fac Res Res Combat Hostiles Destroyed 7 | . . . . . . . . . . 3 4 . AOE 7 | . . . . . . . . . . 3 4 . Classes Destroyed 4 | . . . . . . 1 . . . 2 . 1 Worker 1 | . . . . . . . . . . 1 . . Builder 1 | . . . . . . 1 . . . . . . Tunneler 1 | . . . . . . . . . . . . 1 Swarmer 7 | . . . . . . . . . . 3 4 . Best Kill Streak 4 | . . . . . . 1 . . . 3 4 1 Combat Bots Only 4 | . . . . . . . . . . 3 4 . Max Kills in Single Turn 4 | . . . . . . 1 . . . 3 4 1 Gunslinging . | . . . . . . . . . . . . . Exploded 4 | . . . . . . . . . . 3 4 . Melee . | . . . . . . . . . . . . . Uniques/NPCs Destroyed . | . . . . . . . . . . . . . Combat | -11 -10 -9 -8 -7 -7 -6 -6 -6 -5 -4 -3 -2 -------- Run | Yrd Mat Mat Mat Fac DSF Fac Low Low Fac Fac Res Res Hostile Shots Fired 451 | . 5 22 24 . 2 6 75 . 62 51 98 106 Missed 204 | . 2 5 9 . 1 3 32 . 30 21 53 48 Hits 247 | . 3 17 15 . 1 3 43 . 32 30 45 58 Melee 2 | . . . . . . . . . . . 2 . Projectile 245 | . 3 17 15 . 1 3 43 . 32 30 43 58 AOE 3 | . . . . . . . . . . . 3 . Critical Strikes 12 | . . 2 . . 1 . 2 . 1 . 3 3 Damage Taken 5207 | . 30 234 232 . 51 56 616 . 435 810 1301 1442 Core 4104 | . 30 234 232 . 51 56 513 . 390 544 806 1248 Absorbed by Shields . | . . . . . . . . . . . . . Core Remaining (%) 62 | 100 88 41 57 . 92 . . 33 61 52 38 . Volleys Fired 1 | . . . . . . . . . . . 1 . Largest 1 | . . . . . . . . . . . 1 . Hottest 52 | . . . . . . . . . . . 52 . Shots Fired 1 | . . . . . . . . . . . 1 . Gun . | . . . . . . . . . . . . . Cannon . | . . . . . . . . . . . . . Launcher 1 | . . . . . . . . . . . 1 . Special . | . . . . . . . . . . . . . Kinetic . | . . . . . . . . . . . . . Thermal . | . . . . . . . . . . . . . Explosive 1 | . . . . . . . . . . . 1 . Electromagnetic . | . . . . . . . . . . . . . Robot Hit Streak 1 | . . . . . . . . . . . 1 . Robot Miss Streak . | . . . . . . . . . . . . . Penetration Max . | . . . . . . . . . . . . . Secondary Targets . | . . . . . . . . . . . . . Shots Hit Robots 4 | . . . . . . 1 . . . 2 1 . Core Hits 11 | . . . . . . 1 . . . 4 5 1 Critical Kills . | . . . . . . . . . . . . . Critical Parts Destroyed . | . . . . . . . . . . . . . Critical Strikes . | . . . . . . . . . . . . . Melee Attacks 13 | . . . . . . 4 . . . 3 6 . Impact . | . . . . . . . . . . . . . Slashing 13 | . . . . . . 4 . . . 3 6 . Piercing . | . . . . . . . . . . . . . Sneak Attacks 3 | . . . . . . 1 . . . 2 . . Combat Hostiles . | . . . . . . . . . . . . . Follow-up Attacks . | . . . . . . . . . . . . . Damage Inflicted 1130 | . 12 5 16 . . 72 5 . . 507 495 18 Guns . | . . . . . . . . . . . . . Cannons . | . . . . . . . . . . . . . Explosions 863 | . . . . . . . . . . 368 495 . Melee 207 | . . . . . . 68 . . . 139 . . Ramming 60 | . 12 5 16 . . 4 5 . . . . 18 Kinetic . | . . . . . . . . . . . . . Thermal . | . . . . . . . . . . . . . Explosive 863 | . . . . . . . . . . 368 495 . Electromagnetic . | . . . . . . . . . . . . . Impact . | . . . . . . . . . . . . . Slashing 207 | . . . . . . 68 . . . 139 . . Piercing . | . . . . . . . . . . . . . Highest Corruption 6 | . . 1 . . . . 2 2 . 2 6 4 Average Corruption 2 | . . 1 . . . . 2 2 . 1 4 2 Corruption Purged . | . . . . . . . . . . . . . Corruption Blocked . | . . . . . . . . . . . . . Effects 7 | . . . . . . . . 1 . 1 3 2 Message Errors 2 | . . . . . . . . . . . . 2 Matter Fused 2 | . . . . . . . . . . 1 1 . Heat Flow Errors 1 | . . . . . . . . . . . 1 . Energy Discharges 1 | . . . . . . . . 1 . . . . Data Loss (minor) 1 | . . . . . . . . . . . 1 . Overload Shots . | . . . . . . . . . . . . . Overflow Damage 147 | . . . . . . . . . . 48 99 . Projectiles . | . . . . . . . . . . . . . Explosions 120 | . . . . . . . . . . 21 99 . Melee 27 | . . . . . . . . . . 27 . . Knockbacks . | . . . . . . . . . . . . . Impact . | . . . . . . . . . . . . . Kinetic . | . . . . . . . . . . . . . Secondary . | . . . . . . . . . . . . . Self-Inflicted Damage 141 | . 6 2 8 . . 2 2 . . 113 . 8 Shots 1 | . . . . . . . . . . 1 . . Rammed 8 | . 1 2 1 . . 1 1 . . . . 2 Targets Rammed 8 | . 1 2 1 . . 1 1 . . . . 2 Kicked . | . . . . . . . . . . . . . Crushed . | . . . . . . . . . . . . . Highest Temperature 219 | . . . . . . . . . . . 219 . Average Temperature 92 | . . . . . . . . . . . 92 . Received Heat Transfer 768 | . . 114 72 . . 27 213 . . 63 189 90 Siege Activations . | . . . . . . . . . . . . . Martial Activations . | . . . . . . . . . . . . . Shielding Activations . | . . . . . . . . . . . . . Robots Disrupted . | . . . . . . . . . . . . . Combat Hostiles . | . . . . . . . . . . . . . Robots Corrupted . | . . . . . . . . . . . . . Combat Hostiles . | . . . . . . . . . . . . . Parts Fried . | . . . . . . . . . . . . . Impact Corruptions . | . . . . . . . . . . . . . Robots Melted . | . . . . . . . . . . . . . Combat Hostiles . | . . . . . . . . . . . . . Parts Melted . | . . . . . . . . . . . . . Heat Transferred . | . . . . . . . . . . . . . Parts Sabotaged . | . . . . . . . . . . . . . Parts Stolen . | . . . . . . . . . . . . . Parts Stripped . | . . . . . . . . . . . . . Power Chain Reactions . | . . . . . . . . . . . . . Alert | -11 -10 -9 -8 -7 -7 -6 -6 -6 -5 -4 -3 -2 ------- Run | Yrd Mat Mat Mat Fac DSF Fac Low Low Fac Fac Res Res Maximum Alert Level 1 | . . . . . . . . . . . 1 1 Low Security (%) 84 | 100 100 100 100 100 100 100 . . 100 100 62 52 Level 1 15 | . . . . . . . . . . . 37 47 Level 2 . | . . . . . . . . . . . . . Level 3 . | . . . . . . . . . . . . . Level 4 . | . . . . . . . . . . . . . Level 5 . | . . . . . . . . . . . . . High Security . | . . . . . . . . . . . . . Max Security . | . . . . . . . . . . . . . Peak Influence 327 | . . 45 14 . 15 31 . . 45 152 327 247 Initial 157 | . . . 14 . . 7 . . . 16 63 157 Average 87 | . . 11 8 . 4 12 . . 2 78 175 202 Influence Increases 1048 | . . 45 . . 15 53 60 . 60 247 398 170 Destroy 0b10 Robot/C 140 | . . . . . . . . . . 60 80 . Destroy 0b10 Robot/NC 15 | . . . . . . 5 . . . 5 . 5 Destroy Leader 20 | . . . . . . . . . . 10 10 . Successful Hack 24 | . . . . . . . . . . 16 8 . Disable Machine 15 | . . . . . . . . . . 15 . . Destroy Structure 69 | . . . . . . 3 . . . 36 30 . Partial Spotted 75 | . . . . . . 15 . . 15 . . 45 Lose Combat Pursuer 690 | . . 45 . . 15 30 60 . 45 105 270 120 Influence Decreases 821 | . . 10 35 . . 61 47 20 25 160 239 224 Entered New Map 239 | . . . 21 . . 8 4 4 . 19 59 124 Time Decay 389 | . . 10 14 . . 53 20 16 25 81 90 80 Lost Part 193 | . . . . . . . 23 . . 60 90 20 Squads Dispatched 16 | . 1 2 2 . . 2 . . . 5 3 1 Investigation 4 | . 1 . . . . . . . . 1 2 . Extermination 2 | . . . . . . . . . . 1 . 1 Reinforcement 10 | . . 2 2 . . 2 . . . 3 1 . Assault . | . . . . . . . . . . . . . Garrison . | . . . . . . . . . . . . . Intercept . | . . . . . . . . . . . . . Searches Triggered . | . . . . . . . . . . . . . Construction Impeded . | . . . . . . . . . . . . . Haulers Reinforced . | . . . . . . . . . . . . . Active Scanning Responses . | . . . . . . . . . . . . . Cargo Convoy Interrupts . | . . . . . . . . . . . . . Stealth | -11 -10 -9 -8 -7 -7 -6 -6 -6 -5 -4 -3 -2 --------- Run | Yrd Mat Mat Mat Fac DSF Fac Low Low Fac Fac Res Res Distress Signals 4 | . 1 1 . . . . . . . . 2 . Communications Jammed . | . . . . . . . . . . . . . Distress Signals . | . . . . . . . . . . . . . Times Spotted 123 | . 5 10 11 . 1 7 13 . 8 20 34 14 Peak Tracking Total 19 | . 5 9 11 . 1 4 7 . 10 10 19 8 Tactical Retreats 16 | . . 1 . . 1 1 2 . 1 3 4 3 ECM-based Alert Blocks 3 | . . . . . . . 3 . . . . . Traps | -11 -10 -9 -8 -7 -7 -6 -6 -6 -5 -4 -3 -2 ------- Run | Yrd Mat Mat Mat Fac DSF Fac Low Low Fac Fac Res Res Traps Triggered 7 | . 1 1 . . 1 . . . . . 2 2 Indirectly . | . . . . . . . . . . . . . Trap Hack Attempts . | . . . . . . . . . . . . . Triggered . | . . . . . . . . . . . . . Disarmed . | . . . . . . . . . . . . . Reprogrammed . | . . . . . . . . . . . . . Reused . | . . . . . . . . . . . . . Traps Extracted . | . . . . . . . . . . . . . Installed . | . . . . . . . . . . . . . Triggered . | . . . . . . . . . . . . . Machines | -11 -10 -9 -8 -7 -7 -6 -6 -6 -5 -4 -3 -2 ---------- Run | Yrd Mat Mat Mat Fac DSF Fac Low Low Fac Fac Res Res Machines Disabled 1 | . . . . . . . . . . 1 . . Max in Single Turn 1 | . . . . . . . . . . 1 . . Machines Repaired . | . . . . . . . . . . . . . Machines Dismantled . | . . . . . . . . . . . . . Machines Sabotaged . | . . . . . . . . . . . . . Overloaded Fab Kills . | . . . . . . . . . . . . . Hacking | -11 -10 -9 -8 -7 -7 -6 -6 -6 -5 -4 -3 -2 --------- Run | Yrd Mat Mat Mat Fac DSF Fac Low Low Fac Fac Res Res Machines Accessed 5 | . . 1 . 1 . . . . . 1 1 1 Terminals 5 | . . 1 . 1 . . . . . 1 1 1 Fabricators . | . . . . . . . . . . . . . Repair Stations . | . . . . . . . . . . . . . Recycling Units . | . . . . . . . . . . . . . Scanalyzers . | . . . . . . . . . . . . . Garrison Access . | . . . . . . . . . . . . . Total Hacks 13 | . . 2 . 1 . . . . . 3 3 4 Successful 5 | . . 1 . 1 . . . . . 1 1 1 Failed 8 | . . 1 . . . . . . . 2 2 3 Catastrophic 2 | . . . . . . . . . . . 1 1 Database Lockouts . | . . . . . . . . . . . . . Manual 12 | . . 2 . . . . . . . 3 3 4 Terminals 13 | . . 2 . 1 . . . . . 3 3 4 Fabricators . | . . . . . . . . . . . . . Repair Stations . | . . . . . . . . . . . . . Recycling Units . | . . . . . . . . . . . . . Scanalyzers . | . . . . . . . . . . . . . Garrison Access . | . . . . . . . . . . . . . Terminal Hacks 4 | . . 1 . 1 . . . . . 1 1 . Open DSF 1 | . . . . 1 . . . . . . . . Level Access Points 2 | . . . . . . . . . . 1 1 . Registered Components 1 | . . 1 . . . . . . . . . . Fabricator Hacks . | . . . . . . . . . . . . . Repair Station Hacks . | . . . . . . . . . . . . . Recycling Unit Hacks . | . . . . . . . . . . . . . Scanalyzer . | . . . . . . . . . . . . . Garrison Access Hacks . | . . . . . . . . . . . . . Unauthorized Hacks 1 | . . . . . . . . . . . . 1 Terminals 1 | . . . . . . . . . . . . 1 Botnet 1 | . . . . . . . . . . . . 1 Fabricators . | . . . . . . . . . . . . . Repair Stations . | . . . . . . . . . . . . . Recycling Units . | . . . . . . . . . . . . . Scanalyzers . | . . . . . . . . . . . . . Garrison Access . | . . . . . . . . . . . . . Data Cores Recovered . | . . . . . . . . . . . . . Used . | . . . . . . . . . . . . . Hacking Detections 4 | . . 1 . . . . . . . 1 1 1 Full Trace Events 2 | . . . . . . . . . . 1 1 . Feedback Events . | . . . . . . . . . . . . . Feedback Blocked . | . . . . . . . . . . . . . Robot Schematics Acquired . | . . . . . . . . . . . . . Robots Built . | . . . . . . . . . . . . . Authchips . | . . . . . . . . . . . . . Time . | . . . . . . . . . . . . . Total Robot Build Rating . | . . . . . . . . . . . . . Part Schematics Acquired . | . . . . . . . . . . . . . Parts Built . | . . . . . . . . . . . . . Authchips . | . . . . . . . . . . . . . Time . | . . . . . . . . . . . . . Total Part Build Rating . | . . . . . . . . . . . . . Part Studies Acquired . | . . . . . . . . . . . . . Parts Repaired . | . . . . . . . . . . . . . Time . | . . . . . . . . . . . . . Parts Recycled . | . . . . . . . . . . . . . Recycled Matter . | . . . . . . . . . . . . . Retrieved Matter . | . . . . . . . . . . . . . Retrieved Components . | . . . . . . . . . . . . . Parts Scanalyzed . | . . . . . . . . . . . . . Part Schematics Acquired . | . . . . . . . . . . . . . Parts Damaged . | . . . . . . . . . . . . . Bothacking | -11 -10 -9 -8 -7 -7 -6 -6 -6 -5 -4 -3 -2 ------------ Run | Yrd Mat Mat Mat Fac DSF Fac Low Low Fac Fac Res Res Used RIF Installer . | . . . . . . . . . . . . . Robots Hacked . | . . . . . . . . . . . . . Non-combat . | . . . . . . . . . . . . . Combat . | . . . . . . . . . . . . . Robot Hacks Applied . | . . . . . . . . . . . . . Relay Couplers Released . | . . . . . . . . . . . . . Fabnet Peak Effective % . | . . . . . . . . . . . . . Robots Rewired . | . . . . . . . . . . . . . Allies Hacked . | . . . . . . . . . . . . . Hacks Repelled . | . . . . . . . . . . . . . Allies | -11 -10 -9 -8 -7 -7 -6 -6 -6 -5 -4 -3 -2 -------- Run | Yrd Mat Mat Mat Fac DSF Fac Low Low Fac Fac Res Res Total Allies . | . . . . . . . . . . . . . Largest Group . | . . . . . . . . . . . . . Highest-Rated Group . | . . . . . . . . . . . . . Highest-Rated Ally . | . . . . . . . . . . . . . Total Orders . | . . . . . . . . . . . . . Ally Attacks . | . . . . . . . . . . . . . Total Damage . | . . . . . . . . . . . . . Kills . | . . . . . . . . . . . . . Allies Corrupted . | . . . . . . . . . . . . . Allies Melted . | . . . . . . . . . . . . . Intel | -11 -10 -9 -8 -7 -7 -6 -6 -6 -5 -4 -3 -2 ------- Run | Yrd Mat Mat Mat Fac DSF Fac Low Low Fac Fac Res Res Active Infowar (turns) 414 | . . . . . . 118 69 . . 86 141 . Structural 139 | . . . . . . 118 21 . . . . . Seismic 137 | . . . . . . 68 69 . . . . . Machine Analysis 227 | . . . . . . . . . . 86 141 . ECM 3 | . . . . . . . 3 . . . . . Robot Analysis Total . | . . . . . . . . . . . . . Derelict Logs Recovered 1 | . . . . . . . 1 . . . . . Drone Launches . | . . . . . . . . . . . . . Drone Recoveries . | . . . . . . . . . . . . . Exploration | -11 -10 -9 -8 -7 -7 -6 -6 -6 -5 -4 -3 -2 ------------- Run | Yrd Mat Mat Mat Fac DSF Fac Low Low Fac Fac Res Res Turns Passed 1142 | 11 28 63 43 8 38 142 76 47 121 190 198 177 Spaces Moved 2367 | 23 54 120 83 15 40 288 146 93 244 393 438 430 Core 1345 | 23 54 120 83 15 40 93 136 93 151 213 87 237 Treads . | . . . . . . . . . . . . . Legs . | . . . . . . . . . . . . . Wheels . | . . . . . . . . . . . . . Hover . | . . . . . . . . . . . . . Flight 1022 | . . . . . . 195 10 . 93 180 351 193 Fastest Speed 23 | 50 50 50 50 50 50 40 40 50 45 27 23 27 Average Speed 43 | 50 50 50 50 50 50 43 49 50 48 42 36 39 Slowest Speed 50 | 50 50 50 50 50 50 50 50 50 50 50 50 50 Overloaded Moves . | . . . . . . . . . . . . . Propulsion Burnouts . | . . . . . . . . . . . . . Robots Hopped 19 | . . . . . . 1 . . 4 . 14 . Potential Cave-ins . | . . . . . . . . . . . . . Cave-ins Triggered 1 | . . . . . . . . . . . 1 . Exploration Rate (%) 17 | 3 24 21 14 1 44 13 36 16 11 16 19 14 Regions Visited 12 Branch Regions 2 Pre-discovered Areas . | . . . . . . . . . . . . . Known Exits Taken 5 | . . . . 1 . . 1 . 1 1 1 . Unknown Exits Taken 6 | 1 1 1 1 . . 1 . 1 . . . . Scrap Searched 1 | . . . . . . . 1 . . . . . Spaces Dug 9 | . . . . . . 3 . . . . 6 . Terrain Destroyed 36 | . . . . . . 3 . . . 17 16 . Melee 9 | . . . . . . 3 . . . . 6 . Projectile . | . . . . . . . . . . . . . AOE 27 | . . . . . . . . . . 17 10 . Terrain Rammed . | . . . . . . . . . . . . . Walls Destroyed . | . . . . . . . . . . . . . Machines Disabled . | . . . . . . . . . . . . . Actions | -11 -10 -9 -8 -7 -7 -6 -6 -6 -5 -4 -3 -2 --------- Run | Yrd Mat Mat Mat Fac DSF Fac Low Low Fac Fac Res Res Total 2422 | 22 54 122 84 15 57 296 149 92 243 406 447 435 Wait . | . . . . . . . . . . . . . Move 2321 | 22 53 119 83 15 39 285 145 92 236 392 410 430 Hop 17 | . . . . . . 1 . . 3 . 13 . Pick Up 11 | . . 1 1 . 3 1 . . 1 1 3 . Fast Attach 23 | . . . . . . 3 1 . 2 7 9 1 Attach 7 | . . . . . . 1 . . . 2 3 1 Detach 4 | . . . . . . . 1 . . 1 1 1 Swap . | . . . . . . . . . . . . . Drop 3 | . . . . . . . 1 . 1 . 1 . Fire 1 | . . . . . . . . . . . 1 . Melee 13 | . . . . . . 4 . . . 3 6 . Ram 7 | . 1 2 . . . 1 1 . . . . 2 Kick . | . . . . . . . . . . . . . Crush . | . . . . . . . . . . . . . Escape Stasis 15 | . . . . . 15 . . . . . . . Rewire . | . . . . . . . . . . . . . Trap . | . . . . . . . . . . . . . Miscellaneous . | . . . . . . . . . . . . . Route ------- -11/Scrapyard -10/Materials (discovered 2 exits: *Mat / [*Min]) -9/Materials -8/Materials -7/Factory -7/DSF -6/Factory -6/Lower Caves -6/Lower Caves -5/Factory -4/Factory (discovered 4 exits: *Res x4) -3/Research (discovered 3 exits: *Res x3) -2/Research History --------- Turn | Location | Event 7 | -11/Scrapyard | Discovered new exit (range 12) 12 | -11/Scrapyard | Entered Materials 26 | -10/Materials | Discovered new exit (range 8) 35 | -10/Materials | Discovered new exit (range 11) 40 | -10/Materials | Entered another Materials area 40 | -9/Materials | Evolved 2 slots: Propulsion x2 84 | -9/Materials | Core integrity fell below 50% 100 | -9/Materials | Discovered new exit (range 7) 103 | -9/Materials | Entered another Materials area 103 | -8/Materials | Evolved 2 slots: Propulsion x1, Utility x1 144 | -8/Materials | Discovered new exit (range 6) 146 | -8/Materials | Entered Factory 146 | -7/Factory | Evolved 2 slots: Power x1, Utility x1 154 | -7/Factory | Identified exit to DSF 154 | -7/Factory | Entered DSF 163 | -7/DSF | Discovered new exit (range 14) 180 | -7/DSF | Additional patrols routed to DSF 192 | -7/DSF | Entered Factory 192 | -6/Factory | Evolved 2 slots: Propulsion x1, Utility x1 306 | -6/Factory | Build established: Mutant 331 | -6/Factory | Discovered new exit (range 8) 334 | -6/Factory | Entered Lower Caves 358 | -6/Lower Caves | Identified exit to Lower Caves 404 | -6/Lower Caves | Attracted the attention of an 0b10 checkpoint 404 | -6/Lower Caves | Core integrity fell below 50% 410 | -6/Lower Caves | Entered another Lower Caves area 454 | -6/Lower Caves | Discovered new exit (range 7) 457 | -6/Lower Caves | Entered Factory 457 | -5/Factory | Evolved 2 slots: Propulsion x2 573 | -5/Factory | Discovered new exit (range 9) 577 | -5/Factory | Identified exit to Factory 578 | -5/Factory | Entered another Factory area 578 | -4/Factory | Evolved 2 slots: Propulsion x1, Utility x1 720 | -4/Factory | Lost 5 parts (1p4n) 728 | -4/Factory | Identified exit to Research 768 | -4/Factory | Entered Research 768 | -3/Research | Evolved 2 slots: Propulsion x2 776 | -3/Research | Spotted B-86 Titan 784 | -3/Research | Found Fusion Bomb Launcher 881 | -3/Research | Identified exit to Research 909 | -3/Research | Crushed by falling debris 932 | -3/Research | Found Prototype Hackware 954 | -3/Research | Core integrity fell below 50% 966 | -3/Research | Entered another Research area 966 | -2/Research | Evolved 2 slots: Power x1, Utility x1 966 | -2/Research | Identified Exp. System Shield 997 | -2/Research | Lost 9 parts (1p5n2u1w) 1104 | -2/Research | Core integrity fell below 50% 1143 | -2/Research | Self-destructed Last Messages --------------- 01022_ Imp. Surge Thruster destroyed. 01023_ Slug penetrates Wall. 01024_ Penetrated by Slug. 01029_ Slug penetrates Wall. 01032_ P-80 Master resets Y-72 Warden, system corruption cleaned. 01045_ 0YEKYOAPSL XH9S370IAY2#K9SO#Q7YTPDH%NQAT 01095_ Slammed into T-07 Excavator. 01095_ T-07 Excavator destroyed. 01096_ Acquired 17 matter. 01097_ K-01 Serf collects debris. 01102_ Slammed into K-01 Serf. 01103_ Slug penetrates Wall. 01127_ Y OCEAPPEFB 01139_ Penetrated by Slug. 01142_ ALERT: Potential suspicious activity detected, Programmers report to Research Zone 9W. 01143_ Penetrated by Slug. Map ----- +----------------------------------------------------+ | ???????????????????????????# """ """ ###+ | | ???????????????????????????# """ """ | | ???????????????????????????# """ """ | | ???????????????????????????# """ """ | | ???????????????????????????# """^ """ | | ???????????????????????????# """ """ ! | | ???????????????????????????# ! | | ???????????????????????????# ! | | ????????????????????????#+## * | | ????????????????????????# "" "" | | ???????????????#????????# "F "" | | ???????????????# ???????# """"" | | ?????????????### ######## ################# | | ????????????? "%" #???????????????? | | ????????????????# " ####?????????????? | | ????????????????# +?????????????? | | ????????????????# ####?????????????? | | ????????????????# % #????????????????? | | ????????????????+ #????????????????? | | ????????????????# #######/###????????????????? | | ????????????????# ## k ?????????????????? | | ????????????????## ## ?????????????????? | | ?????????????????# ## """ ""????????????????? | | ?????????????????# ## """ """???????????????? | | ?????????????????# + """ """ #????????????? | | ?????????????????# ### @ #????????????? | | ?????????????????# ??# #????????????? | | ?????????????????# ??# """ """ #????????????? | | ?????????????????+ ??#h """ """ ?#????????????? | | ?????????????????# ??+ """ """???????????????? | | ?????????????????# ??# ???????????????? | | ?????????????????# ??# h ???????????????? | | ?????????????????# ??##/####?##?#??????????????? | | ?????????????????# ????# #??????????????????????? | | ?????????????????# ????? #??????????????????????? | | ?????????????????# ????? #??????????????????????? | | ????????????????? ????? #??????????????????????? | | ????????????????? ?H?????u???????????????????????? | | ????????????????????????? ???????????????????????? | | ?????????????????????????k???????????????????????? | | ????????????????????????? ???????????????????????? | | ?????????????????????????????????????????????????? | | ?????????????????????????????????????????????????? | | ?????????????????????????????????????????????????? | | ?????????????????????????????????????????????????? | | ?????????????????????????????????????????????????? | | ?????????????????????????????????????????????????? | | ?????????????????????????????????????????????????? | | ?????????????????????????????????????????????????? | | ?????????????????????????????????????????????????? | +----------------------------------------------------+ Best States ------------- Heat Dissipation 49 Energy Generation 18 Energy Capacity 300 Matter Stores 300 Matter Capacity 300 Sight Range 16 Terrain Scan Density 10 ECM Strength 1 Evasion (%) 64 Offensive Hacking 10 Defensive Hacking 16 Item Schematics ----------------- None Robot Schematics ------------------ None Fabricated ------------ Nothing Repaired ---------- Nothing Studied --------- None Alien Tech Used ----------------- None Achievements -------------- None Challenges ------------ None Game ------ Seed IntegrityHackingScanner Manual? 0 Play Time 00:20:47 Cumulative 292.7 hours Start 2026.07.18 @ 05:36:49 End 2026.07.18 @ 05:55:03 Sessions 1 Manual Loads 0 Difficulty Rogue Special Mode None Game No. 138 Rogue 138 Adventurer 0 Explorer 0 Win Type - Total 18 Types 14/1/1/1/0/0/0/0/0/1 Lore% 79 Gallery% 74 Achievement% 72 Wizard Run 0 Options --------- Layout 0 ASCII 0 Keyboard 1 Movement Arrows Keybinds 0 Fullscreen 2 Font 18/SmallcapsGlow Map View 76x50 Zoom Use 0% Tactical HUD 1 Map Filters NONE Filters NONE Steam 1 RUN: 2187f1c0-a632-4516-ad12-3e681fc9e648